[Event "14th Chennai GM Open 2023"]
[Site "Chennai"]
[Date "2024.01.01"]
[Round "3.8"]
[White "Tologon tegin, Semetei"]
[Black "Om Nagnath Lamkane"]
[Result "1-0"]
[ECO "A05"]
[WhiteElo "2384"]
[BlackElo "1821"]
[Annotator "RC"]
[PlyCount "59"]
[EventDate "2023.12.31"]
[EventType "swiss"]
[EventCountry "IND"]
[SourceTitle "playchess.com"]
[Source "ChessBase"]
[SourceQuality "1"]
[TimeControl "5400+30"]

1. Nf3 {[%emt 0:04:40]} Nf6 {[%emt 0:01:20]} 2. g3 {[%emt 0:00:12]} g6 {[%emt 0:00:06]} 3. b3 {[%emt 0:00:03]} Bg7 {[%emt 0:00:08]} 4. Bb2 {[%emt 0:00:05]} O-O {[%emt 0:00:30]} 5. Bg2 {[%emt 0:00:09]} c5 {[%emt 0:00:58]} 6. c4 {[%emt 0:00:10]} Nc6 {[%emt 0:01:23]} 7. O-O {[%emt 0:01:13]} d5 {[%emt 0:10:40]} 8. cxd5 {[%emt 0:00:54]} Nxd5 {[%emt 0:00:22]} 9. Bxg7 {[%emt 0:00:06]} Kxg7 {[%emt 0:00:03]} 10. d4 {[%emt 0:30:21]} cxd4 {[%emt 0:12:52]} 11. Nxd4 {[%emt 0:00:13]} Nxd4 {[%emt 0:02:30]} 12. Qxd4+ {[%emt 0:00:32]} Nf6 {[%emt 0:00:08]} 13. Qe5 {[%emt 0:07:14]} Qb6 {[%emt 0:10:16]} 14. Nc3 {[%emt 0:00:25]} Be6 {[%emt 0:02:32]} 15. Na4 {[%emt 0:00:43]} Qb4 {[%emt 0:02:25]} 16. Nc5 {[%emt 0:04:57]} Bd5 {[%emt 0:09:37]} 17. Qxe7 {[%emt 0:00:38]} Qb6 {[%emt 0:01:34]} 18. Bxd5 {[%emt 0:05:41]} Rae8 {[%emt 0:11:33]} 19. Ne6+ {[%emt 0:03:51]} Kg8 {[%emt 0:01:06]} 20. Qxf6 {[%emt 0:00:16]} fxe6 {[%emt 0:00:12]} 21. Bxe6+ {[%emt 0:00:52]} Rxe6 {[%emt 0:03:33]} 22. Qb2 {[%emt 0:00:06]} Ref6 {[%emt 0:02:57]} 23. e3 {[%emt 0:00:08]} g5 {[%emt 0:00:08]} 24. Rad1 {[%emt 0:00:45]} Qe6 {[%emt 0:03:27]} 25. Qd4 {[%emt 0:00:23]} Rc8 {[%emt 0:00:49]} 26. Qxa7 {[%emt 0:00:54]} Rh6 {[%emt 0:01:08]} 27. Qxb7 {[%emt 0:00:14]} Qh3 {[%emt 0:00:33]} 28. Qg2 {[%emt 0:00:31]} Qh5 {[%emt 0:01:00]} 29. Rd7 {[%emt 0:01:03]} Kh8 {[%emt 0:00:50]} 30. Rfd1 {[%emt 0:00:24]} 1-0

[Event "14th Chennai GM Open 2023"]
[Site "Chennai"]
[Date "2024.01.01"]
[Round "3.9"]
[White "Shah Jeet"]
[Black "Podolchenko, Evgeniy"]
[Result "1/2-1/2"]
[ECO "C12"]
[WhiteElo "1830"]
[BlackElo "2376"]
[Annotator "RC"]
[PlyCount "61"]
[EventDate "2023.12.31"]
[EventType "swiss"]
[EventCountry "IND"]
[SourceTitle "playchess.com"]
[Source "ChessBase"]
[SourceQuality "1"]
[TimeControl "5400+30"]

1. e4 {[%emt 0:00:22]} e6 {[%emt 0:00:18]} 2. d4 {[%emt 0:00:10]} d5 {[%emt 0:00:03]} 3. Nc3 {[%emt 0:00:11]} Nf6 {[%emt 0:00:04]} 4. Bg5 {[%emt 0:00:08]} Bb4 {[%emt 0:00:03]} 5. e5 {[%emt 0:00:10]} h6 {[%emt 0:00:03]} 6. Bd2 {[%emt 0:00:05]} Bxc3 {[%emt 0:00:06]} 7. bxc3 {[%emt 0:00:03]} Ne4 {[%emt 0:00:05]} 8. Qg4 {[%emt 0:00:07]} Kf8 {[%emt 0:00:05]} 9. Bd3 {[%emt 0:00:08]} Nxd2 {[%emt 0:00:06]} 10. Kxd2 {[%emt 0:00:03]} c5 {[%emt 0:00:06]} 11. Nf3 {[%emt 0:01:02]} c4 {[%emt 0:00:05]} 12. Be2 {[%emt 0:00:08]} Nc6 {[%emt 0:00:10]} 13. h4 {[%emt 0:00:43]} b5 {[%emt 0:00:29]} 14. a3 {[%emt 0:00:32]} a5 {[%emt 0:00:07]} 15. Qf4 {[%emt 0:00:24]} Bd7 {[%emt 0:00:53]} 16. Rhb1 {[%emt 0:04:32]} Rb8 {[%emt 0:06:26]} 17. Qe3 {[%emt 0:05:31]} Qe7 {[%emt 0:02:21]} 18. g4 {[%emt 0:01:09]} Ke8 {[%emt 0:04:46]} 19. h5 {[%emt 0:09:18]} Kd8 {[%emt 0:02:13]} 20. Rg1 {[%emt 0:26:21]} Kc7 {[%emt 0:07:47]} 21. g5 {[%emt 0:01:56]} b4 {[%emt 0:01:53]} 22. axb4 {[%emt 0:00:12]} axb4 {[%emt 0:00:02]} 23. gxh6 {[%emt 0:01:47]} gxh6 {[%emt 0:00:14]} 24. cxb4 {[%emt 0:00:51]} Rxb4 {[%emt 0:00:02]} 25. Rgb1 {[%emt 0:03:55]} Rhb8 {[%emt 0:18:33]} 26. Rxb4 {[%emt 0:00:08]} Qxb4+ {[%emt 0:00:03]} 27. Qc3 {[%emt 0:00:11]} Qf8 {[%emt 0:01:50]} 28. Qa3 {[%emt 0:12:50]} Qxa3 {[%emt 0:00:03]} 29. Rxa3 {[%emt 0:00:02]} Rg8 {[%emt 0:00:10]} 30. Ra1 {[%emt 0:02:54]} Rg2 {[%emt 0:03:37]} 31. c3 {[%emt 0:01:11]} 1/2-1/2

[Event "14th Chennai GM Open 2023"]
[Site "Chennai"]
[Date "2024.01.01"]
[Round "3.10"]
[White "Shahil Dey"]
[Black "Mhamane Sourabh"]
[Result "1-0"]
[ECO "B48"]
[WhiteElo "2368"]
[BlackElo "1789"]
[Annotator "RC"]
[PlyCount "65"]
[EventDate "2023.12.31"]
[EventType "swiss"]
[EventCountry "IND"]
[SourceTitle "playchess.com"]
[Source "ChessBase"]
[SourceQuality "1"]
[TimeControl "5400+30"]

1. e4 {[%emt 0:00:20]} c5 {[%emt 0:00:04]} 2. Nc3 {[%emt 0:00:49]} e6 {[%emt 0:00:16]} 3. Nge2 {[%emt 0:00:05]} Nc6 {[%emt 0:00:42]} 4. d4 {[%emt 0:00:05]} cxd4 {[%emt 0:00:04]} 5. Nxd4 {[%emt 0:00:04]} Qc7 {[%emt 0:00:13]} 6. Be3 {[%emt 0:00:08]} a6 {[%emt 0:00:04]} 7. g4 {[%emt 1:32:29]} b5 {[%emt 0:00:48]} 8. Nxc6 {[%emt 0:00:00]} Qxc6 {[%emt 0:00:12]} 9. Qd2 {[%emt 0:00:00]} Bb7 {[%emt 0:05:23]} 10. O-O-O {[%emt 0:00:00]} Nf6 {[%emt 0:07:52]} 11. f3 {[%emt 0:00:00]} h6 {[%emt 0:05:47]} 12. Ne2 {[%emt 0:00:00]} Qc7 {[%emt 0:09:03]} 13. Nd4 {[%emt 0:00:00]} Rc8 {[%emt 0:06:30]} 14. Bd3 {[%emt 0:00:00]} Bc5 {[%emt 0:17:31]} 15. Rhe1 {[%emt 0:00:00]} Qb6 {[%emt 0:05:05]} 16. Bf1 {[%emt 0:00:00]} b4 {[%emt 0:00:22]} 17. h4 {[%emt 0:00:00]} Qc7 {[%emt 0:06:56]} 18. Kb1 {[%emt 0:00:00]} d6 {[%emt 0:12:17]} 19. g5 {[%emt 0:00:00]} hxg5 {[%emt 0:00:39]} 20. hxg5 {[%emt 0:00:00]} Nd7 {[%emt 0:00:13]} 21. Nb3 {[%emt 0:00:00]} Bxe3 {[%emt 0:03:22]} 22. Rxe3 {[%emt 0:00:00]} Ne5 {[%emt 0:07:43]} 23. Nd4 {[%emt 0:00:00]} Qc5 {[%emt 0:01:35]} 24. c3 {[%emt 0:00:00]} bxc3 {[%emt 0:03:38]} 25. Rxc3 {[%emt 0:00:00]} Qa7 {[%emt 0:00:31]} 26. Nf5 {[%emt 0:00:00]} exf5 {[%emt 0:02:25]} 27. Qxd6 {[%emt 0:00:00]} Qb8 {[%emt 0:02:24]} 28. Rxc8+ {[%emt 0:00:00]} Qxc8 {[%emt 0:00:06]} 29. Qxe5+ {[%emt 0:00:00]} Kf8 {[%emt 0:02:16]} 30. g6 {[%emt 0:00:00]} fxg6 {[%emt 0:00:46]} 31. Bc4 {[%emt 0:00:00]} Bc6 {[%emt 0:00:40]} 32. Qd6+ {[%emt 0:00:00]} Ke8 {[%emt 0:00:05]} 33. Qxg6+ {[%emt 0:00:00]} 1-0

[Event "14th Chennai GM Open 2023"]
[Site "Chennai"]
[Date "2024.01.01"]
[Round "3.11"]
[White "Hari Ganesh T"]
[Black "Khusenkhojaev, Muhammad"]
[Result "0-1"]
[ECO "C47"]
[WhiteElo "1761"]
[BlackElo "2366"]
[Annotator "RC"]
[PlyCount "120"]
[EventDate "2023.12.31"]
[EventType "swiss"]
[EventCountry "IND"]
[SourceTitle "playchess.com"]
[Source "ChessBase"]
[SourceQuality "1"]
[TimeControl "5400+30"]

1. e4 {[%emt 0:00:06]} e5 {[%emt 0:02:18]} 2. Nf3 {[%emt 0:00:08]} Nc6 {[%emt 0:00:05]} 3. Nc3 {[%emt 0:00:05]} Nf6 {[%emt 0:00:06]} 4. d4 {[%emt 0:00:03]} exd4 {[%emt 0:00:06]} 5. Nxd4 {[%emt 0:00:03]} Bb4 {[%emt 0:00:07]} 6. Nxc6 {[%emt 1:33:05]} bxc6 {[%emt 0:00:05]} 7. Bd3 {[%emt 0:00:00]} d5 {[%emt 0:00:07]} 8. exd5 {[%emt 0:00:00]} O-O {[%emt 0:00:06]} 9. O-O {[%emt 0:00:00]} cxd5 {[%emt 0:00:03]} 10. Bg5 {[%emt 0:00:00]} c6 {[%emt 0:00:06]} 11. Qf3 {[%emt 0:00:00]} a5 {[%emt 0:00:34]} 12. Ne2 {[%emt 0:00:00]} Bg4 {[%emt 0:14:42]} 13. Bxf6 {[%emt 0:00:00]} Bxf3 {[%emt 0:00:33]} 14. Bxd8 {[%emt 0:00:00]} Bxe2 {[%emt 0:00:06]} 15. Bxe2 {[%emt 0:00:00]} Rfxd8 {[%emt 0:00:06]} 16. a4 {[%emt 0:00:00]} Rab8 {[%emt 0:00:42]} 17. Bf3 {[%emt 0:00:00]} Kf8 {[%emt 0:03:19]} 18. Rfd1 {[%emt 0:00:00]} Ke7 {[%emt 0:01:08]} 19. Rd3 {[%emt 0:00:00]} f5 {[%emt 0:02:21]} 20. Rad1 {[%emt 0:00:00]} Rd6 {[%emt 0:00:56]} 21. Kf1 {[%emt 0:00:00]} g6 {[%emt 0:04:02]} 22. Rb3 {[%emt 0:00:00]} Rdd8 {[%emt 0:00:08]} 23. Re3+ {[%emt 0:00:00]} Kf6 {[%emt 0:05:43]} 24. Red3 {[%emt 0:00:00]} Rdc8 {[%emt 0:12:04]} 25. c4 {[%emt 0:00:00]} dxc4 {[%emt 0:00:52]} 26. Rd4 {[%emt 0:00:00]} Bf8 {[%emt 0:02:55]} 27. Rxc4 {[%emt 0:00:00]} c5 {[%emt 0:00:12]} 28. Rd2 {[%emt 0:00:00]} Rb6 {[%emt 0:02:06]} 29. Bd1 {[%emt 0:00:00]} Rb4 {[%emt 0:04:47]} 30. Be2 {[%emt 0:00:00]} Rcb8 {[%emt 0:01:05]} 31. Rxb4 {[%emt 0:00:00]} Rxb4 {[%emt 0:00:07]} 32. Bb5 {[%emt 0:00:00]} Ke5 {[%emt 0:00:37]} 33. g3 {[%emt 0:00:00]} g5 {[%emt 0:01:24]} 34. Ke1 {[%emt 0:00:00]} c4 {[%emt 0:05:22]} 35. Re2+ {[%emt 0:00:00]} Kd5 {[%emt 0:00:26]} 36. Rd2+ {[%emt 0:00:00]} Kc5 {[%emt 0:00:25]} 37. Kd1 {[%emt 0:00:00]} Bg7 {[%emt 0:00:27]} 38. Kc1 {[%emt 0:00:00]} Bd4 {[%emt 0:02:43]} 39. Re2 {[%emt 0:00:00]} Kd5 {[%emt 0:00:33]} 40. f4 {[%emt 0:00:00]} gxf4 {[%emt 0:00:51]} 41. gxf4 {[%emt 0:00:00]} Rb3 {[%emt 0:00:31]} 42. Bd7 {[%emt 0:00:00]} Be3+ {[%emt 0:01:18]} 43. Kc2 {[%emt 0:00:00]} Ke4 {[%emt 0:00:24]} 44. Be6 {[%emt 0:00:00]} Kxf4 {[%emt 0:03:15]} 45. Bxc4 {[%emt 0:00:00]} Rb6 {[%emt 0:00:10]} 46. Bd3 {[%emt 0:03:46]} Kf3 {[%emt 0:01:47]} 47. Re1 {[%emt 0:00:02]} Rf6 {[%emt 0:01:57]} 48. Rf1+ {[%emt 0:01:02]} Bf2 {[%emt 0:00:08]} 49. b4 {[%emt 0:01:02]} axb4 {[%emt 0:00:08]} 50. Kb3 {[%emt 0:00:01]} h5 {[%emt 0:00:33]} 51. a5 {[%emt 0:00:51]} Kg2 {[%emt 0:01:57]} 52. Kxb4 {[%emt 0:00:38]} f4 {[%emt 0:04:00]} 53. a6 {[%emt 0:00:24]} Rf7 {[%emt 0:05:03]} 54. Ra1 {[%emt 0:03:39]} f3 {[%emt 0:00:06]} 55. Bg6 {[%emt 0:04:46]} Rf4+ {[%emt 0:00:12]} 56. Kb5 {[%emt 0:00:46]} Ba7 {[%emt 0:00:21]} 57. Ra2+ {[%emt 0:01:01]} f2 {[%emt 0:00:22]} 58. Bd3 {[%emt 0:00:40]} h4 {[%emt 0:02:35]} 59. Kc6 {[%emt 0:00:11]} Kg1 {[%emt 0:00:26]} 60. Kb7 {[%emt 0:00:04]} Rf7+ {[%emt 0:00:17]} 0-1

[Event "14th Chennai GM Open 2023"]
[Site "Chennai"]
[Date "2024.01.01"]
[Round "3.12"]
[White "Kavin Mohan"]
[Black "Manish Anto Cristiano F"]
[Result "1/2-1/2"]
[ECO "E48"]
[WhiteElo "1751"]
[BlackElo "2349"]
[Annotator "RC"]
[PlyCount "61"]
[EventDate "2023.12.31"]
[EventType "swiss"]
[EventCountry "IND"]
[SourceTitle "playchess.com"]
[Source "ChessBase"]
[SourceQuality "1"]
[TimeControl "5400+30"]

1. d4 {[%emt 0:00:03]} Nf6 {[%emt 0:00:23]} 2. c4 {[%emt 0:00:08]} e6 {[%emt 0:00:11]} 3. Nc3 {[%emt 0:00:06]} Bb4 {[%emt 0:00:33]} 4. e3 {[%emt 0:00:10]} O-O {[%emt 0:00:34]} 5. Bd3 {[%emt 0:00:09]} d5 {[%emt 0:00:22]} 6. Nge2 {[%emt 0:00:14]} c5 {[%emt 0:04:51]} 7. O-O {[%emt 0:01:49]} b6 {[%emt 0:04:43]} 8. cxd5 {[%emt 0:02:01]} cxd4 {[%emt 0:00:23]} 9. exd4 {[%emt 0:01:04]} Nxd5 {[%emt 0:01:05]} 10. Nxd5 {[%emt 0:00:20]} exd5 {[%emt 0:02:57]} 11. Bf4 {[%emt 0:03:06]} Bb7 {[%emt 0:04:06]} 12. Rc1 {[%emt 0:10:19]} Bd6 {[%emt 0:06:04]} 13. Bxd6 {[%emt 0:11:37]} Qxd6 {[%emt 0:00:07]} 14. Nc3 {[%emt 0:00:10]} Nc6 {[%emt 0:09:59]} 15. Qh5 {[%emt 0:00:51]} f5 {[%emt 0:05:35]} 16. Qh4 {[%emt 0:03:05]} Kh8 {[%emt 0:00:46]} 17. a3 {[%emt 0:06:13]} Rf6 {[%emt 0:03:13]} 18. Ne2 {[%emt 0:03:01]} Raf8 {[%emt 0:05:33]} 19. Rfe1 {[%emt 0:02:54]} h6 {[%emt 0:05:15]} 20. Qf4 {[%emt 0:01:01]} Qxf4 {[%emt 0:10:28]} 21. Nxf4 {[%emt 0:00:09]} Nxd4 {[%emt 0:00:10]} 22. Rc7 {[%emt 0:00:12]} R8f7 {[%emt 0:03:58]} 23. Ng6+ {[%emt 0:02:45]} Kh7 {[%emt 0:03:55]} 24. Ne7 {[%emt 0:00:31]} Re6 {[%emt 0:09:20]} 25. Rxe6 {[%emt 0:00:48]} Nxe6 {[%emt 0:00:02]} 26. Rxb7 {[%emt 0:00:16]} Nc5 {[%emt 0:00:07]} 27. Bxf5+ {[%emt 0:01:07]} Rxf5 {[%emt 0:00:08]} 28. Nxf5 {[%emt 0:00:11]} Nxb7 {[%emt 0:00:07]} 29. Kf1 {[%emt 0:00:49]} Na5 {[%emt 0:01:07]} 30. Ne3 {[%emt 0:01:45]} d4 {[%emt 0:01:57]} 31. Nc2 {[%emt 0:01:32]} 1/2-1/2

[Event "14th Chennai GM Open 2023"]
[Site "Chennai"]
[Date "2024.01.01"]
[Round "3.13"]
[White "Jyotshnav Talukdar"]
[Black "Manik, Mikulas"]
[Result "0-1"]
[ECO "A45"]
[WhiteElo "1744"]
[BlackElo "2343"]
[Annotator "RC"]
[PlyCount "120"]
[EventDate "2023.12.31"]
[EventType "swiss"]
[EventCountry "IND"]
[SourceTitle "playchess.com"]
[Source "ChessBase"]
[SourceQuality "1"]
[TimeControl "5400+30"]

1. d4 {[%emt 0:00:02]} Nf6 {[%emt 0:00:02]} 2. Bf4 {[%emt 0:00:13]} c5 {[%emt 0:00:02]} 3. e3 {[%emt 0:00:08]} d6 {[%emt 0:00:29]} 4. Nf3 {[%emt 0:00:35]} g6 {[%emt 0:00:14]} 5. Nc3 {[%emt 0:01:17]} Bg7 {[%emt 0:04:33]} 6. dxc5 {[%emt 0:02:02]} Qa5 {[%emt 0:00:02]} 7. Qd2 {[%emt 0:09:00]} Qxc5 {[%emt 0:00:40]} 8. e4 {[%emt 0:00:14]} O-O {[%emt 0:00:18]} 9. Be3 {[%emt 0:00:33]} Qb4 {[%emt 0:03:00]} 10. a3 {[%emt 0:01:22]} Qxb2 {[%emt 0:00:57]} 11. Ra2 {[%emt 0:00:29]} Nxe4 {[%emt 0:00:06]} 12. Rxb2 {[%emt 0:08:56]} Bxc3 {[%emt 0:00:14]} 13. Qxc3 {[%emt 0:02:25]} Nxc3 {[%emt 0:00:03]} 14. Bd3 {[%emt 0:01:55]} Nc6 {[%emt 0:03:30]} 15. O-O {[%emt 0:04:27]} b6 {[%emt 0:07:05]} 16. Rb3 {[%emt 0:06:39]} Nd5 {[%emt 0:00:58]} 17. Bh6 {[%emt 0:00:19]} Rd8 {[%emt 0:00:55]} 18. Be4 {[%emt 0:00:22]} e6 {[%emt 0:00:22]} 19. Bg5 {[%emt 0:01:04]} Re8 {[%emt 0:03:00]} 20. Bxd5 {[%emt 0:36:52]} exd5 {[%emt 0:00:26]} 21. Rd1 {[%emt 0:00:07]} Ba6 {[%emt 0:03:42]} 22. Re3 {[%emt 0:12:40]} Rxe3 {[%emt 0:02:47]} 23. fxe3 {[%emt 0:00:27]} Bc4 {[%emt 0:00:04]} 24. Bf6 {[%emt 0:03:07]} Re8 {[%emt 0:00:55]} 25. Kf2 {[%emt 0:00:02]} Ne5 {[%emt 0:00:38]} 26. Nxe5 {[%emt 0:00:38]} dxe5 {[%emt 0:00:06]} 27. g4 {[%emt 0:00:15]} Re6 {[%emt 0:00:57]} 28. g5 {[%emt 0:00:02]} h5 {[%emt 0:00:01]} 29. h4 {[%emt 0:00:26]} e4 {[%emt 0:02:22]} 30. Kg3 {[%emt 0:01:58]} b5 {[%emt 0:00:38]} 31. Rb1 {[%emt 0:04:33]} Ra6 {[%emt 0:00:32]} 32. Bb2 {[%emt 0:01:10]} Kf8 {[%emt 0:02:26]} 33. Bd4 {[%emt 0:00:47]} Ke7 {[%emt 0:00:55]} 34. c3 {[%emt 0:00:47]} Kd6 {[%emt 0:00:59]} 35. Rb2 {[%emt 0:01:16]} Ke7 {[%emt 0:10:03]} 36. Rf2 {[%emt 0:00:08]} Ke8 {[%emt 0:00:15]} 37. Bc5 {[%emt 0:00:12]} Bd3 {[%emt 0:00:08]} 38. Rf6 {[%emt 0:01:12]} Rxf6 {[%emt 0:02:50]} 39. gxf6 {[%emt 0:00:02]} Kd7 {[%emt 0:00:05]} 40. Kf4 {[%emt 0:00:21]} Ke6 {[%emt 0:00:04]} 41. Kg5 {[%emt 0:00:22]} a6 {[%emt 0:00:17]} 42. Bf8 {[%emt 0:00:17]} Be2 {[%emt 0:00:46]} 43. Bc5 {[%emt 0:00:22]} Bg4 {[%emt 0:00:06]} 44. Bb4 {[%emt 0:00:35]} Bf5 {[%emt 0:02:06]} 45. Be7 {[%emt 0:00:49]} Kd7 {[%emt 0:01:53]} 46. Kf4 {[%emt 0:00:32]} Be6 {[%emt 0:00:12]} 47. Bb4 {[%emt 0:01:04]} Kc6 {[%emt 0:00:07]} 48. Be7 {[%emt 0:00:13]} Kb6 {[%emt 0:00:20]} 49. Bf8 {[%emt 0:01:04]} Ka5 {[%emt 0:00:23]} 50. Ke5 {[%emt 0:00:20]} Ka4 {[%emt 0:00:26]} 51. Kd4 {[%emt 0:00:12]} Kb3 {[%emt 0:02:32]} 52. Bb4 {[%emt 0:00:26]} g5 {[%emt 0:05:52]} 53. hxg5 {[%emt 0:00:12]} h4 {[%emt 0:00:05]} 54. Bd6 {[%emt 0:01:14]} h3 {[%emt 0:45:02]} 55. Bh2 {[%emt 0:00:38]} Bf5 {[%emt 0:00:00]} 56. Kxd5 {[%emt 0:00:31]} Kxa3 {[%emt 0:00:00]} 57. Kc5 {[%emt 0:00:30]} Kb3 {[%emt 0:00:00]} 58. Be5 {[%emt 0:00:29]} a5 {[%emt 0:00:00]} 59. Kxb5 {[%emt 0:00:28]} a4 {[%emt 0:00:00]} 60. c4 {[%emt 0:00:36]} a3 {[%emt 0:00:00]} 0-1

[Event "14th Chennai GM Open 2023"]
[Site "Chennai"]
[Date "2024.01.01"]
[Round "3.14"]
[White "Laxman, R.R."]
[Black "Sushanth Kamabathula"]
[Result "1-0"]
[ECO "A12"]
[WhiteElo "2338"]
[BlackElo "1742"]
[Annotator "RC"]
[PlyCount "133"]
[EventDate "2023.12.31"]
[EventType "swiss"]
[EventCountry "IND"]
[SourceTitle "playchess.com"]
[Source "ChessBase"]
[SourceQuality "1"]
[TimeControl "5400+30"]

1. Nf3 {[%emt 0:01:00]} Nf6 {[%emt 0:00:15]} 2. b3 {[%emt 0:00:42]} d5 {[%emt 0:00:49]} 3. Bb2 {[%emt 0:00:10]} Bf5 {[%emt 0:01:40]} 4. e3 {[%emt 0:01:06]} e6 {[%emt 0:00:22]} 5. Be2 {[%emt 0:00:43]} h6 {[%emt 0:00:19]} 6. c4 {[%emt 0:00:28]} c6 {[%emt 0:00:59]} 7. O-O {[%emt 0:00:42]} Bd6 {[%emt 0:00:23]} 8. d3 {[%emt 0:02:52]} Bh7 {[%emt 0:02:17]} 9. Nbd2 {[%emt 0:02:19]} Qe7 {[%emt 0:01:40]} 10. Ne5 {[%emt 0:05:00]} Bxe5 {[%emt 0:02:18]} 11. Bxe5 {[%emt 0:00:02]} Nbd7 {[%emt 0:00:09]} 12. Bc3 {[%emt 0:08:45]} O-O {[%emt 0:01:02]} 13. b4 {[%emt 0:00:57]} e5 {[%emt 0:01:44]} 14. Re1 {[%emt 0:03:43]} Rfd8 {[%emt 0:14:50]} 15. Qb3 {[%emt 0:02:00]} Nf8 {[%emt 0:07:06]} 16. c5 {[%emt 0:02:57]} d4 {[%emt 0:06:08]} 17. exd4 {[%emt 0:00:18]} exd4 {[%emt 0:00:12]} 18. Bb2 {[%emt 0:00:21]} Ne6 {[%emt 0:01:57]} 19. Nc4 {[%emt 0:03:37]} Nf4 {[%emt 0:12:05]} 20. Bf1 {[%emt 0:01:28]} Qd7 {[%emt 0:00:46]} 21. Ne5 {[%emt 0:08:47]} Qd5 {[%emt 0:02:32]} 22. g3 {[%emt 0:02:19]} Qxb3 {[%emt 0:01:50]} 23. axb3 {[%emt 0:00:02]} N4d5 {[%emt 0:00:09]} 24. b5 {[%emt 0:00:13]} cxb5 {[%emt 0:03:43]} 25. c6 {[%emt 0:00:55]} b6 {[%emt 0:07:09]} 26. Bh3 {[%emt 0:04:57]} Nc7 {[%emt 0:02:27]} 27. Nd7 {[%emt 0:00:29]} Nfd5 {[%emt 0:00:17]} 28. Bxd4 {[%emt 0:00:42]} f6 {[%emt 0:00:14]} 29. Re2 {[%emt 0:13:27]} Bg6 {[%emt 0:01:48]} 30. Bg2 {[%emt 0:02:52]} Bf5 {[%emt 0:01:31]} 31. Rea2 {[%emt 0:00:10]} Bxd7 {[%emt 0:01:18]} 32. cxd7 {[%emt 0:00:03]} Rxd7 {[%emt 0:04:14]} 33. Rxa7 {[%emt 0:00:13]} Rxa7 {[%emt 0:00:06]} 34. Rxa7 {[%emt 0:00:03]} Rd6 {[%emt 0:00:12]} 35. Be4 {[%emt 0:01:36]} Ne6 {[%emt 0:06:42]} 36. Be3 {[%emt 0:01:57]} Nxe3 {[%emt 0:03:26]} 37. fxe3 {[%emt 0:00:02]} Kf8 {[%emt 0:03:25]} 38. d4 {[%emt 0:00:55]} Nd8 {[%emt 0:01:40]} 39. Bd3 {[%emt 0:01:12]} Nc6 {[%emt 0:01:57]} 40. Ra8+ {[%emt 0:01:20]} Rd8 {[%emt 0:00:41]} 41. Rxd8+ {[%emt 0:00:09]} Nxd8 {[%emt 0:00:04]} 42. Bxb5 {[%emt 0:00:02]} Ke7 {[%emt 0:00:42]} 43. Kf2 {[%emt 0:00:08]} Nb7 {[%emt 0:00:42]} 44. e4 {[%emt 0:00:35]} Nd6 {[%emt 0:01:09]} 45. Bd3 {[%emt 0:00:02]} Ke6 {[%emt 0:00:55]} 46. Ke3 {[%emt 0:00:32]} Nc8 {[%emt 0:02:22]} 47. Bc4+ {[%emt 0:00:22]} Kd6 {[%emt 0:00:16]} 48. b4 {[%emt 0:31:16]} Ne7 {[%emt 0:00:39]} 49. b5 {[%emt 0:00:00]} Nc8 {[%emt 0:01:18]} 50. Kf4 {[%emt 0:00:00]} Ne7 {[%emt 0:00:04]} 51. Bf7 {[%emt 0:00:00]} Nc8 {[%emt 0:01:10]} 52. h4 {[%emt 0:00:00]} Ne7 {[%emt 0:00:37]} 53. h5 {[%emt 0:00:00]} Nc8 {[%emt 0:00:56]} 54. Bc4 {[%emt 0:00:00]} Ne7 {[%emt 0:00:57]} 55. Bf1 {[%emt 0:00:00]} Ke6 {[%emt 0:02:36]} 56. Bh3+ {[%emt 0:00:00]} Kd6 {[%emt 0:00:06]} 57. Bf5 {[%emt 0:00:00]} Ng8 {[%emt 0:00:38]} 58. d5 {[%emt 0:00:00]} Ne7 {[%emt 0:00:31]} 59. Be6 {[%emt 0:00:00]} Kc5 {[%emt 0:00:17]} 60. e5 {[%emt 0:00:00]} g5+ {[%emt 0:01:23]} 61. Ke4 {[%emt 0:00:00]} f5+ {[%emt 0:00:20]} 62. Bxf5 {[%emt 0:00:00]} Nxd5 {[%emt 0:00:09]} 63. Bd7 {[%emt 0:00:00]} Ne7 {[%emt 0:00:59]} 64. g4 {[%emt 0:00:00]} Ng8 {[%emt 0:00:36]} 65. Kf5 {[%emt 0:00:00]} Ne7+ {[%emt 0:00:29]} 66. Ke6 {[%emt 0:00:00]} Nd5 {[%emt 0:00:29]} 67. Kf7 {[%emt 0:00:00]} 1-0